[Event "Late-Titled-Tuesday-Blitz-March-12-2024"]
[Site "Chess.com"]
[Date "2024.03.12"]
[Round "5"]
[White "maurovargas01"]
[Black "Kavyev_Ruslan"]
[Result "0-1"]
[WhiteElo "1839"]
[BlackElo "2505"]
[TimeControl "180+1"]
[EndTime "14:52:51 PDT"]
[Termination "Kavyev_Ruslan won on time"]

1. e4 {[%clk 0:01:30.3]} 1... c6 {[%clk 0:02:58.5]} 2. Nc3 {[%clk 0:01:28.6]}
2... d5 {[%clk 0:02:58.4]} 3. d3 {[%clk 0:01:19.4]} 3... dxe4 {[%clk 0:02:40.8]}
4. Nxe4 {[%clk 0:01:18.2]} 4... Nf6 {[%clk 0:02:39.3]} 5. Ng3 {[%clk 0:01:14.6]}
5... Bg4 {[%clk 0:02:35]} 6. f3 {[%clk 0:01:12.5]} 6... Bc8 {[%clk 0:02:29.4]}
7. N1e2 {[%clk 0:01:11]} 7... e6 {[%clk 0:02:28.5]} 8. Nc3 {[%clk 0:01:09.1]}
8... Bd6 {[%clk 0:02:24.4]} 9. Nge4 {[%clk 0:01:06.6]} 9... Bc7 {[%clk
0:02:19.6]} 10. g3 {[%clk 0:01:01.8]} 10... h6 {[%clk 0:02:13]} 11. Bg2 {[%clk
0:01:01.6]} 11... b6 {[%clk 0:02:11.4]} 12. Be3 {[%clk 0:00:59.7]} 12... Bb7
{[%clk 0:02:11.2]} 13. Qd2 {[%clk 0:00:56.8]} 13... c5 {[%clk 0:02:09.3]} 14.
O-O-O {[%clk 0:00:49.6]} 14... Nbd7 {[%clk 0:02:08.8]} 15. g4 {[%clk 0:00:40.1]}
15... Nd5 {[%clk 0:02:02.2]} 16. g5 {[%clk 0:00:25.9]} 16... Nxe3 {[%clk
0:01:50]} 17. Qxe3 {[%clk 0:00:24.5]} 17... hxg5 {[%clk 0:01:50.4]} 18. Nxg5
{[%clk 0:00:21.4]} 18... Qf6 {[%clk 0:01:48]} 19. Nge4 {[%clk 0:00:15.7]} 19...
Qf4 {[%clk 0:01:43.4]} 20. Qxf4 {[%clk 0:00:14.1]} 20... Bxf4+ {[%clk
0:01:44.3]} 21. Kb1 {[%clk 0:00:13.8]} 21... Rxh2 {[%clk 0:01:35.2]} 22. Rdg1
{[%clk 0:00:10.7]} 22... Rxh1 {[%clk 0:01:31.5]} 23. Rxh1 {[%clk 0:00:10.5]}
23... Ke7 {[%clk 0:01:29.6]} 24. Re1 {[%clk 0:00:05.4]} 24... Nf6 {[%clk
0:01:26.1]} 25. a3 {[%clk 0:00:05]} 25... g5 {[%clk 0:01:22.4]} 26. Ne2 {[%clk
0:00:03.8]} 26... Nxe4 {[%clk 0:01:20.2]} 27. fxe4 {[%clk 0:00:03.2]} 27... Be5
{[%clk 0:01:18.5]} 0-1

[Event "Late-Titled-Tuesday-Blitz-March-12-2024"]
[Site "Chess.com"]
[Date "2024.03.12"]
[Round "5"]
[White "trriinu"]
[Black "CrushingKings"]
[Result "0-1"]
[WhiteElo "2260"]
[BlackElo "2588"]
[TimeControl "180+1"]
[EndTime "14:52:51 PDT"]
[Termination "CrushingKings won on time"]

1. e4 {[%clk 0:02:51.8]} 1... g6 {[%clk 0:02:55.9]} 2. d4 {[%clk 0:02:51.6]}
2... Bg7 {[%clk 0:02:56.8]} 3. Nc3 {[%clk 0:02:51.7]} 3... c6 {[%clk 0:02:57.7]}
4. f4 {[%clk 0:02:50.7]} 4... d5 {[%clk 0:02:58.2]} 5. e5 {[%clk 0:02:49.2]}
5... Nh6 {[%clk 0:02:58.8]} 6. h3 {[%clk 0:02:47.9]} 6... f6 {[%clk 0:02:59]} 7.
Be3 {[%clk 0:02:41]} 7... O-O {[%clk 0:02:54.6]} 8. Nf3 {[%clk 0:02:37.1]} 8...
Nf5 {[%clk 0:02:54.7]} 9. Bf2 {[%clk 0:02:37.1]} 9... fxe5 {[%clk 0:02:55]} 10.
fxe5 {[%clk 0:02:37.1]} 10... Bh6 {[%clk 0:02:54.5]} 11. Qd3 {[%clk 0:02:28.7]}
11... Bf4 {[%clk 0:02:53.5]} 12. Ne2 {[%clk 0:02:19.1]} 12... Ng7 {[%clk
0:02:40.2]} 13. Nxf4 {[%clk 0:02:02.5]} 13... Qa5+ {[%clk 0:02:39.9]} 14. c3
{[%clk 0:01:27.8]} 14... Rxf4 {[%clk 0:02:39.2]} 15. Be3 {[%clk 0:01:23.4]}
15... Rf8 {[%clk 0:02:35.1]} 16. Bg5 {[%clk 0:01:22.2]} 16... Bf5 {[%clk
0:02:32.3]} 17. Qd2 {[%clk 0:01:21.9]} 17... Rf7 {[%clk 0:02:14]} 18. Be2 {[%clk
0:01:06.8]} 18... Nd7 {[%clk 0:02:14]} 19. O-O {[%clk 0:01:06.5]} 19... Nf8
{[%clk 0:02:13.1]} 20. Bh6 {[%clk 0:00:55.4]} 20... Nfe6 {[%clk 0:02:13.1]} 21.
Nh4 {[%clk 0:00:29.7]} 21... Raf8 {[%clk 0:02:04.7]} 22. a3 {[%clk 0:00:10.2]}
22... c5 {[%clk 0:02:02.6]} 23. dxc5 {[%clk 0:00:08.9]} 23... Qxc5+ {[%clk
0:02:01.8]} 24. Be3 {[%clk 0:00:07.4]} 24... Qc6 {[%clk 0:02:00.7]} 25. Rad1
{[%clk 0:00:07.3]} 25... Be4 {[%clk 0:01:58]} 26. Rxf7 {[%clk 0:00:03.8]} 26...
Rxf7 {[%clk 0:01:58.4]} 27. Nf3 {[%clk 0:00:04.2]} 27... Nf5 {[%clk 0:01:57.7]}
28. Bd4 {[%clk 0:00:03.1]} 28... Ng3 {[%clk 0:01:54.6]} 29. Bd3 {[%clk
0:00:02.5]} 29... Nf4 {[%clk 0:01:53.8]} 30. Bxe4 {[%clk 0:00:02.5]} 30... Nfe2+
{[%clk 0:01:39.6]} 31. Kh2 {[%clk 0:00:02.5]} 31... dxe4 {[%clk 0:01:39.5]} 32.
Ng5 {[%clk 0:00:02.6]} 32... Rf5 {[%clk 0:01:39.3]} 33. Qe3 {[%clk 0:00:02.7]}
33... h6 {[%clk 0:01:35.1]} 34. Re1 {[%clk 0:00:01.9]} 34... hxg5 {[%clk
0:01:35.2]} 35. Rxe2 {[%clk 0:00:02.4]} 35... Nf1+ {[%clk 0:01:35.5]} 0-1

[Event "Late-Titled-Tuesday-Blitz-March-12-2024"]
[Site "Chess.com"]
[Date "2024.03.12"]
[Round "5"]
[White "Synctel"]
[Black "PoXerStar"]
[Result "0-1"]
[WhiteElo "1901"]
[BlackElo "2371"]
[TimeControl "180+1"]
[EndTime "14:52:54 PDT"]
[Termination "PoXerStar won on time"]

1. e4 {[%clk 0:02:56.3]} 1... c5 {[%clk 0:02:55.6]} 2. Ne2 {[%clk 0:02:48.3]}
2... Nc6 {[%clk 0:02:54.8]} 3. Nbc3 {[%clk 0:02:42.7]} 3... g6 {[%clk
0:02:53.8]} 4. g3 {[%clk 0:02:42.8]} 4... Bg7 {[%clk 0:02:53]} 5. Bg2 {[%clk
0:02:43.1]} 5... e6 {[%clk 0:02:52.6]} 6. d3 {[%clk 0:02:41.1]} 6... Nge7 {[%clk
0:02:52.8]} 7. Be3 {[%clk 0:02:40.5]} 7... d6 {[%clk 0:02:52.6]} 8. Qd2 {[%clk
0:02:39.7]} 8... h5 {[%clk 0:02:42.6]} 9. h3 {[%clk 0:02:29.4]} 9... Nd4 {[%clk
0:02:37]} 10. f4 {[%clk 0:02:00.3]} 10... Bd7 {[%clk 0:02:22.1]} 11. Nd1 {[%clk
0:01:42.4]} 11... Bc6 {[%clk 0:01:57.6]} 12. c3 {[%clk 0:01:40.7]} 12... Nxe2
{[%clk 0:01:57.1]} 13. Qxe2 {[%clk 0:01:41.6]} 13... b5 {[%clk 0:01:49]} 14. Nf2
{[%clk 0:01:28.2]} 14... Nf5 {[%clk 0:01:39.2]} 15. exf5 {[%clk 0:01:11.1]}
15... Bxg2 {[%clk 0:01:37.1]} 16. Rg1 {[%clk 0:00:51.7]} 16... Bd5 {[%clk
0:01:31.6]} 17. c4 {[%clk 0:00:49.3]} 17... bxc4 {[%clk 0:01:23.5]} 18. dxc4
{[%clk 0:00:50.2]} 18... Bc6 {[%clk 0:01:21.5]} 19. fxg6 {[%clk 0:00:43.7]}
19... fxg6 {[%clk 0:01:22.4]} 20. g4 {[%clk 0:00:22.4]} 20... Rb8 {[%clk
0:01:19.6]} 21. Nd3 {[%clk 0:00:18.1]} 21... Kf7 {[%clk 0:01:16.9]} 22. f5
{[%clk 0:00:17.7]} 22... exf5 {[%clk 0:01:15]} 23. gxf5 {[%clk 0:00:17.3]} 23...
gxf5 {[%clk 0:01:15.2]} 24. O-O-O {[%clk 0:00:12.1]} 24... Qa5 {[%clk
0:01:11.2]} 25. Rxg7+ {[%clk 0:00:09.9]} 25... Kxg7 {[%clk 0:01:10.5]} 26. Rg1+
{[%clk 0:00:08.5]} 26... Kf7 {[%clk 0:01:10]} 27. Qf2 {[%clk 0:00:04.6]} 27...
Be4 {[%clk 0:01:09.5]} 0-1

[Event "Late-Titled-Tuesday-Blitz-March-12-2024"]
[Site "Chess.com"]
[Date "2024.03.12"]
[Round "5"]
[White "VD_coach"]
[Black "Zavgorodniy_Sergiy"]
[Result "1/2-1/2"]
[WhiteElo "2496"]
[BlackElo "2608"]
[TimeControl "180+1"]
[EndTime "14:52:57 PDT"]
[Termination "Game drawn by repetition"]

1. Nf3 {[%clk 0:03:00.9]} 1... d5 {[%clk 0:02:59.9]} 2. d4 {[%clk 0:02:59.5]}
2... Nf6 {[%clk 0:02:59.5]} 3. c4 {[%clk 0:03:00]} 3... dxc4 {[%clk 0:02:59.6]}
4. e3 {[%clk 0:02:59.9]} 4... e6 {[%clk 0:02:59.9]} 5. Bxc4 {[%clk 0:02:57.8]}
5... a6 {[%clk 0:02:59.9]} 6. O-O {[%clk 0:02:56.5]} 6... b5 {[%clk 0:03:00.2]}
7. Bb3 {[%clk 0:02:55.2]} 7... Bb7 {[%clk 0:03:01.1]} 8. Nc3 {[%clk 0:02:46.2]}
8... Nbd7 {[%clk 0:03:01]} 9. Qe2 {[%clk 0:02:46.4]} 9... c5 {[%clk 0:03:01]}
10. Rd1 {[%clk 0:02:46.5]} 10... Qc7 {[%clk 0:03:01.2]} 11. d5 {[%clk
0:02:46.1]} 11... exd5 {[%clk 0:03:02.1]} 12. Bxd5 {[%clk 0:02:45.5]} 12... Nxd5
{[%clk 0:03:02.7]} 13. Nxd5 {[%clk 0:02:45]} 13... Bxd5 {[%clk 0:03:03.6]} 14.
Rxd5 {[%clk 0:02:44.6]} 14... Be7 {[%clk 0:03:04.5]} 15. e4 {[%clk 0:02:43.5]}
15... O-O {[%clk 0:03:04.8]} 16. Bg5 {[%clk 0:02:41]} 16... Nb6 {[%clk
0:03:04.6]} 17. Bxe7 {[%clk 0:02:18.3]} 17... Qxe7 {[%clk 0:03:05.5]} 18. Rd3
{[%clk 0:02:14.2]} 18... Rfe8 {[%clk 0:03:02.4]} 19. e5 {[%clk 0:02:11.4]} 19...
Rad8 {[%clk 0:03:02]} 20. Rad1 {[%clk 0:02:09.9]} 20... c4 {[%clk 0:02:55.8]}
21. Rxd8 {[%clk 0:02:04.5]} 21... Rxd8 {[%clk 0:02:56.7]} 22. Rxd8+ {[%clk
0:02:04.6]} 22... Qxd8 {[%clk 0:02:57.6]} 23. e6 {[%clk 0:02:03.8]} 23... Qe7
{[%clk 0:02:43.7]} 24. exf7+ {[%clk 0:01:32.9]} 24... Kxf7 {[%clk 0:02:43.7]}
25. Ne5+ {[%clk 0:01:33]} 25... Kg8 {[%clk 0:02:42.8]} 26. Qe4 {[%clk
0:01:07.7]} 26... g6 {[%clk 0:02:34.2]} 27. h4 {[%clk 0:01:00.8]} 27... Kg7
{[%clk 0:02:31.4]} 28. g3 {[%clk 0:01:00.3]} 28... Na4 {[%clk 0:02:14.5]} 29.
Qd4 {[%clk 0:00:50.4]} 29... Kg8 {[%clk 0:02:05.4]} 30. Ng4 {[%clk 0:00:43.5]}
30... h5 {[%clk 0:02:02.7]} 31. Nf6+ {[%clk 0:00:42.9]} 31... Kf7 {[%clk
0:02:01.4]} 32. Ne4 {[%clk 0:00:40.9]} 32... Kg8 {[%clk 0:01:51.9]} 33. Ng5
{[%clk 0:00:29.1]} 33... Nc5 {[%clk 0:01:30.5]} 34. Qd5+ {[%clk 0:00:29.1]}
34... Kh8 {[%clk 0:01:30.1]} 35. Qd4+ {[%clk 0:00:28.9]} 35... Kg8 {[%clk
0:01:28.6]} 36. Qd5+ {[%clk 0:00:27.9]} 36... Kh8 {[%clk 0:01:13.9]} 37. Qd4+
{[%clk 0:00:18.9]} 37... Kg8 {[%clk 0:01:13.8]} 1/2-1/2

[Event "Late-Titled-Tuesday-Blitz-March-12-2024"]
[Site "Chess.com"]
[Date "2024.03.12"]
[Round "5"]
[White "publicaccountcze"]
[Black "ThaBarWa"]
[Result "1-0"]
[WhiteElo "2191"]
[BlackElo "2357"]
[TimeControl "180+1"]
[EndTime "14:52:59 PDT"]
[Termination "publicaccountcze won by resignation"]

1. e4 {[%clk 0:03:00.9]} 1... c5 {[%clk 0:02:57.9]} 2. Nf3 {[%clk 0:02:59.3]}
2... d6 {[%clk 0:02:56.8]} 3. d4 {[%clk 0:02:55.3]} 3... cxd4 {[%clk 0:02:57.7]}
4. Nxd4 {[%clk 0:02:55.6]} 4... Nf6 {[%clk 0:02:58.1]} 5. Nc3 {[%clk 0:02:55]}
5... a6 {[%clk 0:02:58.7]} 6. Bc4 {[%clk 0:02:52.9]} 6... e6 {[%clk 0:02:58.1]}
7. Bg5 {[%clk 0:02:47.1]} 7... Nbd7 {[%clk 0:02:57]} 8. Qe2 {[%clk 0:02:42.7]}
8... b5 {[%clk 0:02:53]} 9. Bb3 {[%clk 0:02:40.3]} 9... Qc7 {[%clk 0:02:49.9]}
10. O-O-O {[%clk 0:02:39.4]} 10... Nc5 {[%clk 0:02:32.1]} 11. Rhe1 {[%clk
0:02:29.2]} 11... Be7 {[%clk 0:02:28.8]} 12. Bd5 {[%clk 0:02:01.4]} 12... Bb7
{[%clk 0:02:10.3]} 13. Bxb7 {[%clk 0:01:56]} 13... Qxb7 {[%clk 0:02:07.2]} 14.
Nd5 {[%clk 0:01:51.2]} 14... exd5 {[%clk 0:01:39.4]} 15. exd5 {[%clk 0:01:49.9]}
15... Kf8 {[%clk 0:01:33]} 16. Nc6 {[%clk 0:01:48.7]} 16... Re8 {[%clk
0:01:05.7]} 17. Bxf6 {[%clk 0:01:41.5]} 17... gxf6 {[%clk 0:01:04.7]} 18. Qh5
{[%clk 0:01:42]} 18... Rg8 {[%clk 0:00:54]} 19. Qh6+ {[%clk 0:01:28.5]} 19...
Rg7 {[%clk 0:00:53.4]} 20. Re3 {[%clk 0:01:24]} 20... Kg8 {[%clk 0:00:46.7]} 21.
Rde1 {[%clk 0:01:23.5]} 21... Rg6 {[%clk 0:00:35.5]} 22. Nxe7+ {[%clk 0:01:02]}
22... Rxe7 {[%clk 0:00:32.6]} 23. Rxe7 {[%clk 0:00:54.8]} 23... Qxe7 {[%clk
0:00:20.5]} 24. Qxg6+ {[%clk 0:00:54.2]} 24... hxg6 {[%clk 0:00:21.2]} 25. Rxe7
{[%clk 0:00:53.6]} 25... Kg7 {[%clk 0:00:22.1]} 26. Re8 {[%clk 0:00:49.9]} 26...
f5 {[%clk 0:00:22]} 27. Rd8 {[%clk 0:00:50.1]} 27... Ne4 {[%clk 0:00:22.2]} 28.
f3 {[%clk 0:00:49.7]} 1-0

[Event "Late-Titled-Tuesday-Blitz-March-12-2024"]
[Site "Chess.com"]
[Date "2024.03.12"]
[Round "5"]
[White "Redzishchess"]
[Black "SirStrateg"]
[Result "0-1"]
[WhiteElo "2524"]
[BlackElo "2655"]
[TimeControl "180+1"]
[EndTime "14:53:11 PDT"]
[Termination "SirStrateg won on time"]

1. d4 {[%clk 0:02:58.6]} 1... d6 {[%clk 0:03:00.5]} 2. Nf3 {[%clk 0:02:57.4]}
2... Bg4 {[%clk 0:03:00]} 3. Bf4 {[%clk 0:02:51.3]} 3... Nd7 {[%clk 0:02:59]} 4.
e3 {[%clk 0:02:47.6]} 4... e5 {[%clk 0:02:53]} 5. dxe5 {[%clk 0:02:31.2]} 5...
dxe5 {[%clk 0:02:52.8]} 6. Bg3 {[%clk 0:02:26]} 6... e4 {[%clk 0:02:43.5]} 7.
Qd4 {[%clk 0:02:26.1]} 7... Ngf6 {[%clk 0:02:34.4]} 8. Ne5 {[%clk 0:01:53]} 8...
Bc5 {[%clk 0:02:00.1]} 9. Qa4 {[%clk 0:01:51.6]} 9... Bf5 {[%clk 0:01:59.2]} 10.
Nc3 {[%clk 0:01:30]} 10... O-O {[%clk 0:01:50.8]} 11. O-O-O {[%clk 0:01:27.2]}
11... Qe7 {[%clk 0:01:40]} 12. Nxd7 {[%clk 0:00:51.2]} 12... Bxd7 {[%clk
0:01:39.8]} 13. Qb3 {[%clk 0:00:51.2]} 13... Bc6 {[%clk 0:01:33]} 14. Bb5 {[%clk
0:00:32.2]} 14... Bxb5 {[%clk 0:01:21.2]} 15. Nxb5 {[%clk 0:00:29.8]} 15... c6
{[%clk 0:01:18.6]} 16. Bd6 {[%clk 0:00:07.4]} 16... Bxd6 {[%clk 0:01:13.1]} 17.
Nxd6 {[%clk 0:00:08.3]} 17... Nd5 {[%clk 0:01:01.4]} 18. Nf5 {[%clk 0:00:05.7]}
18... Qf6 {[%clk 0:00:55.5]} 19. g4 {[%clk 0:00:05.8]} 19... g6 {[%clk
0:00:52.9]} 20. Rhg1 {[%clk 0:00:01.4]} 20... gxf5 {[%clk 0:00:49.7]} 21. gxf5+
{[%clk 0:00:02.3]} 21... Kh8 {[%clk 0:00:49.9]} 22. Rg4 {[%clk 0:00:01.3]} 22...
Qxf5 {[%clk 0:00:43.6]} 0-1

[Event "Late-Titled-Tuesday-Blitz-March-12-2024"]
[Site "Chess.com"]
[Date "2024.03.12"]
[Round "5"]
[White "amiralfio"]
[Black "Englishman_18"]
[Result "1-0"]
[WhiteElo "2659"]
[BlackElo "2268"]
[TimeControl "180+1"]
[EndTime "14:53:12 PDT"]
[Termination "amiralfio won on time"]

1. e4 {[%clk 0:03:00.1]} 1... c5 {[%clk 0:02:57.2]} 2. Nc3 {[%clk 0:02:59.6]}
2... d6 {[%clk 0:02:53.8]} 3. Nf3 {[%clk 0:02:59.2]} 3... Nf6 {[%clk 0:02:53.2]}
4. Bb5+ {[%clk 0:02:58.2]} 4... Bd7 {[%clk 0:02:51.3]} 5. Bxd7+ {[%clk
0:02:57.4]} 5... Qxd7 {[%clk 0:02:51.3]} 6. d4 {[%clk 0:02:57]} 6... cxd4 {[%clk
0:02:51.2]} 7. Nxd4 {[%clk 0:02:57.9]} 7... a6 {[%clk 0:02:44.7]} 8. O-O {[%clk
0:02:58]} 8... Nc6 {[%clk 0:02:44.2]} 9. Re1 {[%clk 0:02:58.1]} 9... g6 {[%clk
0:02:08.5]} 10. Nd5 {[%clk 0:02:54]} 10... Qd8 {[%clk 0:01:37]} 11. Nxf6+ {[%clk
0:02:51.9]} 11... exf6 {[%clk 0:01:37]} 12. Nxc6 {[%clk 0:02:40.5]} 12... bxc6
{[%clk 0:01:36.9]} 13. Bf4 {[%clk 0:02:41.3]} 13... Be7 {[%clk 0:01:35.7]} 14.
Bh6 {[%clk 0:02:41]} 14... Bf8 {[%clk 0:01:34.3]} 15. Qd2 {[%clk 0:02:39.8]}
15... Qe7 {[%clk 0:01:27.4]} 16. Rad1 {[%clk 0:02:35.9]} 16... Rd8 {[%clk
0:01:26.7]} 17. h3 {[%clk 0:02:16.6]} 17... g5 {[%clk 0:01:14.2]} 18. Bxf8
{[%clk 0:02:14.4]} 18... Kxf8 {[%clk 0:01:14.2]} 19. Qa5 {[%clk 0:02:14.2]}
19... Ra8 {[%clk 0:00:53.8]} 20. Qb6 {[%clk 0:02:08.5]} 20... Qd7 {[%clk
0:00:43.5]} 21. e5 {[%clk 0:02:04.7]} 21... fxe5 {[%clk 0:00:38.2]} 22. Rxe5
{[%clk 0:02:03.8]} 22... f6 {[%clk 0:00:32.6]} 23. Rc5 {[%clk 0:01:54.7]} 23...
Kg7 {[%clk 0:00:27.2]} 24. Rxc6 {[%clk 0:01:53.1]} 24... Qf5 {[%clk 0:00:17.3]}
25. Rcxd6 {[%clk 0:01:48.1]} 25... Rhe8 {[%clk 0:00:16.8]} 26. Rd7+ {[%clk
0:01:36.8]} 26... Kg6 {[%clk 0:00:16.5]} 27. Qb7 {[%clk 0:01:36.1]} 27... Rab8
{[%clk 0:00:05.7]} 28. Qa7 {[%clk 0:01:26.3]} 28... Ra8 {[%clk 0:00:05.3]} 29.
Qd4 {[%clk 0:01:22.6]} 29... Rab8 {[%clk 0:00:03.3]} 30. b3 {[%clk 0:01:22.1]}
30... Qxc2 {[%clk 0:00:02.7]} 31. Rd6 {[%clk 0:01:20.5]} 31... Qf5 {[%clk
0:00:02.2]} 32. Rd3 {[%clk 0:01:14.3]} 32... Re1+ {[%clk 0:00:01.3]} 33. Kh2
{[%clk 0:01:14.6]} 1-0

[Event "Late-Titled-Tuesday-Blitz-March-12-2024"]
[Site "Chess.com"]
[Date "2024.03.12"]
[Round "5"]
[White "ameetghasi100"]
[Black "ValeriyGrinev"]
[Result "0-1"]
[WhiteElo "2803"]
[BlackElo "2606"]
[TimeControl "180+1"]
[EndTime "14:53:15 PDT"]
[Termination "ValeriyGrinev won by resignation"]

1. Nf3 {[%clk 0:03:00]} 1... c5 {[%clk 0:03:00.1]} 2. e3 {[%clk 0:02:56.6]} 2...
Nf6 {[%clk 0:02:57.8]} 3. b3 {[%clk 0:02:55.7]} 3... g6 {[%clk 0:02:56.4]} 4.
Bb2 {[%clk 0:02:56.6]} 4... Bg7 {[%clk 0:02:56.4]} 5. c4 {[%clk 0:02:57.3]} 5...
O-O {[%clk 0:02:55.7]} 6. Be2 {[%clk 0:02:57.2]} 6... d5 {[%clk 0:02:54.2]} 7.
cxd5 {[%clk 0:02:58.1]} 7... Qxd5 {[%clk 0:02:54.2]} 8. Nc3 {[%clk 0:02:57.8]}
8... Qf5 {[%clk 0:02:52]} 9. Rc1 {[%clk 0:02:55.8]} 9... Nc6 {[%clk 0:02:50.7]}
10. Na4 {[%clk 0:02:56.1]} 10... b6 {[%clk 0:02:46.1]} 11. d4 {[%clk 0:02:55.7]}
11... Ne4 {[%clk 0:02:46.2]} 12. O-O {[%clk 0:02:44.4]} 12... Bb7 {[%clk
0:02:43.8]} 13. Bd3 {[%clk 0:02:39.9]} 13... cxd4 {[%clk 0:02:36.9]} 14. exd4
{[%clk 0:02:37.8]} 14... Qd5 {[%clk 0:01:57.2]} 15. Re1 {[%clk 0:02:31.2]} 15...
Ng5 {[%clk 0:01:54.5]} 16. Nxg5 {[%clk 0:02:13.8]} 16... Qxg5 {[%clk 0:01:55.4]}
17. Be4 {[%clk 0:02:09.6]} 17... Rac8 {[%clk 0:01:49.7]} 18. Qf3 {[%clk
0:02:09.5]} 18... Nxd4 {[%clk 0:01:44.2]} 19. Qd3 {[%clk 0:02:03.3]} 19... Bxe4
{[%clk 0:00:47.7]} 20. Qxe4 {[%clk 0:02:02.8]} 20... Ne6 {[%clk 0:00:47]} 21.
Qb7 {[%clk 0:01:22.5]} 21... Rxc1 {[%clk 0:00:45.4]} 22. Bxc1 {[%clk 0:01:22.3]}
22... Qa5 {[%clk 0:00:44.8]} 23. Rd1 {[%clk 0:01:13.7]} 23... b5 {[%clk
0:00:44.6]} 24. Bd2 {[%clk 0:01:13.8]} 24... Rd8 {[%clk 0:00:36.8]} 25. Rf1
{[%clk 0:00:19.2]} 25... Rxd2 {[%clk 0:00:35.8]} 26. Qxe7 {[%clk 0:00:14.5]} 0-1

[Event "Late-Titled-Tuesday-Blitz-March-12-2024"]
[Site "Chess.com"]
[Date "2024.03.12"]
[Round "5"]
[White "lluiss"]
[Black "thesupera12"]
[Result "0-1"]
[WhiteElo "2244"]
[BlackElo "2445"]
[TimeControl "180+1"]
[EndTime "14:53:15 PDT"]
[Termination "thesupera12 won on time"]

1. Nf3 {[%clk 0:03:00.9]} 1... e5 {[%clk 0:02:58.2]} 2. Nxe5 {[%clk 0:02:59.6]}
2... Qf6 {[%clk 0:02:57.8]} 3. Nf3 {[%clk 0:02:57.2]} 3... g5 {[%clk 0:02:58.4]}
4. h3 {[%clk 0:02:52.2]} 4... h5 {[%clk 0:02:58]} 5. d4 {[%clk 0:02:50.1]} 5...
Bh6 {[%clk 0:02:57.8]} 6. Nc3 {[%clk 0:02:40.7]} 6... g4 {[%clk 0:02:58]} 7.
hxg4 {[%clk 0:02:40.8]} 7... hxg4 {[%clk 0:02:58.6]} 8. Ne5 {[%clk 0:02:34.2]}
8... Bd2+ {[%clk 0:02:56.2]} 9. Bxd2 {[%clk 0:02:28.9]} 9... g3 {[%clk
0:02:47.8]} 10. fxg3 {[%clk 0:02:01]} 10... Rxh1 {[%clk 0:02:45.8]} 11. Nf3
{[%clk 0:02:01.1]} 11... Nc6 {[%clk 0:02:38.8]} 12. Bg5 {[%clk 0:02:00.1]} 12...
Qg6 {[%clk 0:02:30.3]} 13. Qd2 {[%clk 0:01:57.6]} 13... d6 {[%clk 0:02:28.5]}
14. O-O-O {[%clk 0:01:55.1]} 14... f6 {[%clk 0:02:27.9]} 15. Bf4 {[%clk
0:01:43.1]} 15... Bg4 {[%clk 0:02:26.2]} 16. e4 {[%clk 0:01:28.8]} 16... O-O-O
{[%clk 0:02:22]} 17. Re1 {[%clk 0:01:18.3]} 17... Qh5 {[%clk 0:02:10.2]} 18. d5
{[%clk 0:01:08.9]} 18... Bxf3 {[%clk 0:01:59.4]} 19. dxc6 {[%clk 0:01:03.4]}
19... Bg4 {[%clk 0:01:56]} 20. cxb7+ {[%clk 0:01:01.4]} 20... Kb8 {[%clk
0:01:53.9]} 21. Be3 {[%clk 0:00:46]} 21... Ne7 {[%clk 0:01:50.8]} 22. a4 {[%clk
0:00:23.2]} 22... Nc6 {[%clk 0:01:42.7]} 23. Nb5 {[%clk 0:00:23]} 23... a6
{[%clk 0:01:35.8]} 24. Nd4 {[%clk 0:00:21.2]} 24... Nxd4 {[%clk 0:01:35.6]} 25.
Qxd4 {[%clk 0:00:21.4]} 25... Qc5 {[%clk 0:01:31.1]} 26. Qxf6 {[%clk 0:00:11.2]}
26... Qb4 {[%clk 0:01:25.3]} 27. Qxd8+ {[%clk 0:00:10.6]} 27... Kxb7 {[%clk
0:01:26]} 28. Bd2 {[%clk 0:00:07.6]} 28... Qxa4 {[%clk 0:01:25.7]} 29. Kb1
{[%clk 0:00:06.2]} 29... Be6 {[%clk 0:01:23.6]} 30. c4 {[%clk 0:00:02.8]} 30...
Bxc4 {[%clk 0:01:17.1]} 31. Bxc4 {[%clk 0:00:02.7]} 31... Rxe1+ {[%clk
0:01:17.9]} 32. Bxe1 {[%clk 0:00:02.8]} 32... Qxc4 {[%clk 0:01:18.8]} 33. Bc3
{[%clk 0:00:02.1]} 33... Qxe4+ {[%clk 0:01:18.6]} 34. Ka2 {[%clk 0:00:01.5]}
34... Qd5+ {[%clk 0:01:18.7]} 35. Ka1 {[%clk 0:00:01.7]} 35... Qxg2 {[%clk
0:01:19.5]} 36. Ka2 {[%clk 0:00:01.9]} 36... Qxg3 {[%clk 0:01:19]} 37. Qe7
{[%clk 0:00:02]} 37... Qf3 {[%clk 0:01:17.7]} 38. Ka1 {[%clk 0:00:01.9]} 38...
Qd1+ {[%clk 0:01:17.1]} 39. Ka2 {[%clk 0:00:02.1]} 39... Qd5+ {[%clk 0:01:18]}
40. Ka1 {[%clk 0:00:02.3]} 40... Kc6 {[%clk 0:01:18.4]} 0-1

[Event "Late-Titled-Tuesday-Blitz-March-12-2024"]
[Site "Chess.com"]
[Date "2024.03.12"]
[Round "5"]
[White "rikchessmx"]
[Black "Cuchulin"]
[Result "0-1"]
[WhiteElo "2281"]
[BlackElo "2062"]
[TimeControl "180+1"]
[EndTime "14:53:16 PDT"]
[Termination "Cuchulin won on time"]

1. e3 {[%clk 0:02:37.5]} 1... c5 {[%clk 0:02:59.9]} 2. c4 {[%clk 0:02:38.4]}
2... e6 {[%clk 0:02:59]} 3. Nc3 {[%clk 0:02:39.3]} 3... d5 {[%clk 0:02:59.2]} 4.
Nf3 {[%clk 0:02:37.2]} 4... d4 {[%clk 0:02:57.2]} 5. exd4 {[%clk 0:02:37.1]}
5... cxd4 {[%clk 0:02:58]} 6. Nb5 {[%clk 0:02:37.2]} 6... Nc6 {[%clk 0:02:54.9]}
7. d3 {[%clk 0:02:35.7]} 7... e5 {[%clk 0:02:55.1]} 8. Na3 {[%clk 0:02:23.5]}
8... Bxa3 {[%clk 0:02:53.5]} 9. bxa3 {[%clk 0:02:23.5]} 9... Nf6 {[%clk
0:02:48.9]} 10. Be2 {[%clk 0:02:22.1]} 10... O-O {[%clk 0:02:48.3]} 11. O-O
{[%clk 0:02:22.7]} 11... b6 {[%clk 0:02:44.6]} 12. Bd2 {[%clk 0:02:22.3]} 12...
Bb7 {[%clk 0:02:44.2]} 13. Bb4 {[%clk 0:02:22.1]} 13... Nxb4 {[%clk 0:02:38.3]}
14. axb4 {[%clk 0:02:20.3]} 14... Qd6 {[%clk 0:02:38.3]} 15. a3 {[%clk 0:02:19]}
15... Rad8 {[%clk 0:02:33.7]} 16. Re1 {[%clk 0:02:18.3]} 16... Rfe8 {[%clk
0:02:33.2]} 17. Rc1 {[%clk 0:02:12.8]} 17... Nd7 {[%clk 0:02:31.7]} 18. Nd2
{[%clk 0:02:11.3]} 18... a5 {[%clk 0:02:30.9]} 19. Qb3 {[%clk 0:02:07.5]} 19...
axb4 {[%clk 0:02:26.7]} 20. axb4 {[%clk 0:02:07]} 20... Re6 {[%clk 0:02:10.5]}
21. Bf3 {[%clk 0:00:45.6]} 21... Bxf3 {[%clk 0:02:02.3]} 22. Nxf3 {[%clk
0:00:26.2]} 22... Rg6 {[%clk 0:02:02.2]} 23. c5 {[%clk 0:00:22.3]} 23... Qc6
{[%clk 0:01:59.9]} 24. Kf1 {[%clk 0:00:19.9]} 24... bxc5 {[%clk 0:01:59]} 25.
bxc5 {[%clk 0:00:19.2]} 25... Rc8 {[%clk 0:01:26.4]} 26. Qc4 {[%clk 0:00:02.6]}
26... h6 {[%clk 0:01:17.3]} 27. Re2 {[%clk 0:00:02.4]} 27... Re6 {[%clk
0:01:08.8]} 28. Ra2 {[%clk 0:00:02.6]} 28... e4 {[%clk 0:01:07.8]} 29. dxe4
{[%clk 0:00:02.2]} 29... Qxe4 {[%clk 0:01:00.4]} 30. Qb5 {[%clk 0:00:01.6]}
30... Nxc5 {[%clk 0:00:53]} 0-1